fUSD/lending_fUSD_20260613
["ID","MTS","AMOUNT","RATE_DAILY","PERIOD"]
[424971053,1781362246000,-6344.45,0.00027872,2]
[424971036,1781362246000,-467.34,0.00027763,7]
[424971081,1781362246000,-6344.45,0.00028033,30]
[424971039,1781362246000,-467.34,0.00027794,30]
[424971083,1781362246000,-467.84,0.00028038,7]
[424971118,1781362246000,-270.0455652,0.00028421,2]
[424971119,1781362246000,-152.80013625,0.00028421,2]
[424971121,1781362246000,-656.26945127,0.00028488,2]
[424971123,1781362246000,-2684.2027576,0.00028509,2]
[424971120,1781362246000,-552.41131597,0.00028488,2]
[424971126,1781362246000,-1099.39,0.00028516,30]
[424971122,1781362246000,-150.0,0.00028494,2]
[424971129,1781362246000,-307.54580339,0.00028566,7]
[424971128,1781362246000,-308.52237718,0.00028566,7]
[424971127,1781362246000,-370.35195989,0.00028566,7]
[424971125,1781362246000,-1144.59,0.00028516,30]
[424971124,1781362246000,-92429.6800391,0.00028509,2]
[424971131,1781362246000,-324.02982103,0.00028566,7]
[424971130,1781362246000,-412.95664059,0.00028566,7]
[424971133,1781362246000,-376.01790611,0.00028566,7]
[424971135,1781362246000,-179.29961787,0.00028566,2]
[424971134,1781362246000,-306.58749095,0.00028566,7]
[424971136,1781362246000,-176.51803256,0.00028566,2]
[424971132,1781362246000,-303.6615009,0.00028566,7]
[424971138,1781362246000,-303.18729295,0.00028566,7]
[424971140,1781362246000,-353.63391051,0.00028566,7]
[424971137,1781362246000,-348.46820544,0.00028566,7]
[424971139,1781362246000,-404.76912308,0.00028566,7]
[424971142,1781362246000,-417.42549201,0.00028566,7]
[424971143,1781362246000,-347.65573237,0.00028566,7]
[424971144,1781362246000,-348.35779852,0.00028566,7]
[424971085,1781362246000,-565.95068465,0.00028094,2]
[424971108,1781362246000,-1099.39,0.00028355,2]
[424971116,1781362246000,-153.05655402,0.00028421,2]
[424971141,1781362246000,-306.74542712,0.00028566,7]
[424971115,1781362246000,-225.18697532,0.00028421,2]
[424971112,1781362246000,-250.0,0.0002842,2]
[424971084,1781362246000,-467.84,0.00028068,30]
[424971088,1781362246000,-250.0,0.0002813,2]
[424971090,1781362246000,-250.0,0.0002813,2]
[424971089,1781362246000,-250.0,0.0002813,2]
[424971087,1781362246000,-250.0,0.0002813,2]
[424971092,1781362246000,-467.93,0.0002813,7]
[424971094,1781362246000,-39154.70395339,0.00028147,2]
[424971095,1781362246000,-511.106,0.0002818,2]
[424971098,1781362246000,-682.19,0.00028194,7]
[424971097,1781362246000,-6342.07,0.00028194,7]
[424971103,1781362246000,-150.0,0.00028218,30]
[424971102,1781362246000,-1099.39,0.00028194,7]
[424971086,1781362246000,-467.84,0.00028099,2]
[424971099,1781362246000,-1144.59,0.00028194,7]
[424971104,1781362246000,-951.9,0.00028267,2]
[424971110,1781362246000,-250.0,0.0002842,2]
[424971111,1781362246000,-250.0,0.0002842,2]
[424971109,1781362246000,-511.106,0.00028376,2]
[424971113,1781362246000,-418.52236093,0.00028421,2]
[424971114,1781362246000,-284.01862642,0.00028421,2]
[424971106,1781362246000,-501.0,0.00028333,11]
[424971101,1781362246000,-6344.45,0.00028194,7]
[424971100,1781362246000,-682.11,0.00028194,7]
[424971107,1781362246000,-1144.59,0.00028355,2]
[424971117,1781362246000,-151.0,0.00028421,2]
[424971105,1781362246000,-4655.18,0.00028292,7]
[424971096,1781362246000,-152.0,0.00028193,7]
[424971185,1781362247000,-302.02669522,0.00028692,7]
[424971177,1781362247000,-379.74690822,0.00028692,7]
[424971178,1781362247000,-492.39217405,0.00028692,7]
[424971169,1781362247000,-395.55772108,0.00028588,7]
[424971175,1781362247000,-4335.0,0.00028681,10]
[424971180,1781362247000,-403.1813375,0.00028692,7]
[424971179,1781362247000,-364.91702964,0.00028692,7]
[424971184,1781362247000,-328.20057913,0.00028692,7]
[424971183,1781362247000,-301.92358094,0.00028692,7]
[424971174,1781362247000,-333.41490066,0.00028676,7]
[424971176,1781362247000,-233.5188934,0.00028692,2]
[424971191,1781362247000,-383.50489651,0.00028692,7]
[424971181,1781362247000,-543.91421079,0.00028692,7]
[424971182,1781362247000,-304.66897412,0.00028692,7]
[424971187,1781362247000,-337.16094486,0.00028692,7]
[424971188,1781362247000,-330.46640917,0.00028692,7]
[424971190,1781362247000,-367.71932815,0.00028692,7]
[424971193,1781362247000,-353.77088039,0.00028692,7]
[424971195,1781362247000,-241.45217659,0.00028692,7]
[424971196,1781362247000,-248.28950335,0.00028692,7]
[424971173,1781362247000,-177.0,0.00028625,3]
[424971198,1781362247000,-155.15033319,0.00028692,7]
[424971186,1781362247000,-360.84002401,0.00028692,7]
[424971168,1781362247000,-405.97868775,0.00028588,7]
[424971160,1781362247000,-500.0,0.00028576,120]
[424971166,1781362247000,-398.81466142,0.00028588,7]
[424971192,1781362247000,-210.29100766,0.00028692,7]
[424971146,1781362247000,-511.106,0.00028571,2]
[424971148,1781362247000,-151.0,0.00028574,7]
[424971150,1781362247000,-150.0,0.00028575,30]
[424971147,1781362247000,-417.08708176,0.00028572,3]
[424971149,1781362247000,-151.0,0.00028574,7]
[424971151,1781362247000,-150.0,0.00028575,30]
[424971153,1781362247000,-500.0,0.00028576,120]
[424971152,1781362247000,-500.0,0.00028576,120]
[424971155,1781362247000,-302.41,0.00028576,120]
[424971157,1781362247000,-500.0,0.00028576,120]
[424971158,1781362247000,-500.0,0.00028576,120]
[424971161,1781362247000,-570.97788295,0.00028576,120]
[424971159,1781362247000,-500.0,0.00028576,120]
[424971154,1781362247000,-500.0,0.00028576,120]
[424971156,1781362247000,-500.0,0.00028576,120]
[424971163,1781362247000,-234.14911254,0.00028588,7]
[424971162,1781362247000,-237.29417436,0.00028588,7]
[424971167,1781362247000,-342.19283278,0.00028588,7]
[424971170,1781362247000,-302.35895842,0.00028588,7]
[424971172,1781362247000,-802.12,0.00028602,10]
[424971171,1781362247000,-343.74185686,0.00028589,7]
[424971164,1781362247000,-368.79578008,0.00028588,7]
[424971165,1781362247000,-359.77722026,0.00028588,7]
[424971194,1781362247000,-168.62001591,0.00028692,7]
[424971145,1781362247000,-322.07498912,0.00028566,7]
[424971197,1781362247000,-176.72664511,0.00028692,2]
[424971226,1781362247000,-200.0,0.00028739,2]
[424971227,1781362247000,-200.0,0.00028739,2]
[424971230,1781362247000,-1497.91,0.00028765,14]
[424971228,1781362247000,-200.0,0.00028739,2]
[424971231,1781362247000,-176.36253076,0.00028765,2]
[424971233,1781362247000,-500.0,0.00028767,2]
[424971225,1781362247000,-200.0,0.00028739,2]
[424971234,1781362247000,-218.0466575,0.00028767,2]
[424971235,1781362247000,-1000.0,0.00028767,40]
[424971236,1781362247000,-1700.0,0.000288,10]
[424971237,1781362247000,-500.0,0.00028855,2]
[424971240,1781362247000,-1497.91,0.00028876,10]
[424971241,1781362247000,-1123.42,0.00028883,5]
[424971247,1781362247000,-20878.07718858,0.00028913,2]
[424971246,1781362247000,-2300.0,0.000289,10]
[424971244,1781362247000,-2000.0,0.000289,2]
[424971238,1781362247000,-150.0,0.00028855,2]
[424971245,1781362247000,-563.0,0.000289,2]
[424971242,1781362247000,-10310.022,0.000289,2]
[424971243,1781362247000,-33283.9248,0.000289,2]
[424971248,1781362247000,-565.95068459,0.00028945,2]
[424971249,1781362247000,-511.106,0.00028963,2]
[424971189,1781362247000,-315.10589188,0.00028692,7]
[424971232,1781362247000,-511.106,0.00028767,2]
[424971229,1781362247000,-200.0,0.00028739,2]
[424971239,1781362247000,-150.0,0.00028855,2]
[424971223,1781362247000,-200.0,0.00028738,2]
[424971199,1781362247000,-155.76910114,0.00028692,2]
[424971224,1781362247000,-200.0,0.00028739,2]
[424971200,1781362247000,-247.02892797,0.00028692,5]
[424971202,1781362247000,-205.46414914,0.00028692,7]
[424971206,1781362247000,-341.63909529,0.00028692,7]
[424971205,1781362247000,-220.57456637,0.00028692,7]
[424971208,1781362247000,-301.08725553,0.00028692,7]
[424971210,1781362247000,-323.25080727,0.00028692,7]
[424971201,1781362247000,-175.98527621,0.00028692,2]
[424971204,1781362247000,-194.8392793,0.00028692,7]
[424971203,1781362247000,-226.40288704,0.00028692,7]
[424971209,1781362247000,-172.84039709,0.00028692,7]
[424971207,1781362247000,-346.81151756,0.00028692,5]
[424971211,1781362247000,-300.60060419,0.00028692,7]
[424971221,1781362247000,-152.0,0.00028716,3]
[424971218,1781362247000,-4262.96033156,0.0002871,2]
[424971219,1781362247000,-250.0,0.0002871,2]
[424971220,1781362247000,-250.0,0.0002871,2]
[424971217,1781362247000,-301.12593334,0.00028692,7]
[424971222,1781362247000,-200.0,0.00028737,2]
[424971216,1781362247000,-310.59352665,0.00028692,7]
[424971215,1781362247000,-390.55419086,0.00028692,7]
[424971214,1781362247000,-303.50038031,0.00028692,2]
[424971212,1781362247000,-385.18405106,0.00028692,7]
[424971213,1781362247000,-173.73957344,0.00028692,7]
[424971297,1781362248000,-200.0,0.00029,2]
[424971294,1781362248000,-218.32,0.00029,2]
[424971290,1781362248000,-200.0,0.00029,2]
[424971287,1781362248000,-200.0,0.00029,2]
[424971298,1781362248000,-167.64625114,0.00029,2]
[424971279,1781362248000,-200.0,0.00029,2]
[424971283,1781362248000,-200.0,0.00029,2]
[424971284,1781362248000,-200.0,0.00029,2]
[424971280,1781362248000,-200.0,0.00029,2]
[424971276,1781362248000,-500.0,0.00029,2]
[424971293,1781362248000,-200.0,0.00029,2]
[424971288,1781362248000,-200.0,0.00029,2]
[424971289,1781362248000,-200.0,0.00029,2]
[424971308,1781362248000,-500.0,0.00029,2]
[424971292,1781362248000,-200.0,0.00029,2]
[424971291,1781362248000,-200.0,0.00029,2]
[424971295,1781362248000,-227.71842302,0.00029,2]
[424971299,1781362248000,-357.60707013,0.00029,2]
[424971300,1781362248000,-10000.0,0.00029,2]
[424971303,1781362248000,-2902.0,0.00029,10]
[424971302,1781362248000,-500.0,0.00029,2]
[424971305,1781362248000,-500.0,0.00029,2]
[424971304,1781362248000,-500.0,0.00029,2]
[424971306,1781362248000,-216.029201,0.00029,10]
[424971307,1781362248000,-500.0,0.00029,2]
[424971311,1781362248000,-182.3164135,0.00029,2]
[424971281,1781362248000,-200.0,0.00029,2]
[424971296,1781362248000,-337.05,0.00029,2]
[424971286,1781362248000,-200.0,0.00029,2]
[424971254,1781362248000,-280.03725111,0.00028969,2]
[424971285,1781362248000,-200.0,0.00029,2]
[424971250,1781362248000,-284.01862642,0.00028969,2]
[424971251,1781362248000,-233.5188934,0.00028969,2]
[424971252,1781362248000,-153.05655404,0.00028969,2]
[424971255,1781362248000,-570.76777022,0.00028973,2]
[424971310,1781362248000,-500.0,0.00029,2]
[424971259,1781362248000,-684.83158444,0.00028973,2]
[424971253,1781362248000,-151.0,0.00028969,2]
[424971260,1781362248000,-317.64406207,0.00028973,2]
[424971256,1781362248000,-526.55017434,0.00028973,2]
[424971257,1781362248000,-205.39918601,0.00028973,2]
[424971258,1781362248000,-5454.297937,0.00028973,2]
[424971261,1781362248000,-313.73037253,0.00028973,2]
[424971262,1781362248000,-500.0,0.00029,2]
[424971282,1781362248000,-200.0,0.00029,2]
[424971264,1781362248000,-500.0,0.00029,2]
[424971265,1781362248000,-500.0,0.00029,2]
[424971273,1781362248000,-500.0,0.00029,2]
[424971269,1781362248000,-500.0,0.00029,2]
[424971266,1781362248000,-500.0,0.00029,2]
[424971268,1781362248000,-190.16757878,0.00029,2]
[424971271,1781362248000,-500.0,0.00029,2]
[424971267,1781362248000,-500.0,0.00029,2]
[424971272,1781362248000,-500.0,0.00029,2]
[424971270,1781362248000,-500.0,0.00029,2]
[424971274,1781362248000,-500.0,0.00029,2]
[424971275,1781362248000,-500.0,0.00029,2]
[424971278,1781362248000,-247.0,0.00029,7]
[424971277,1781362248000,-500.0,0.00029,2]
[424971263,1781362248000,-500.0,0.00029,2]
[424971301,1781362248000,-250.0,0.00029,2]
[424971319,1781362248000,-597.0,0.00029109,30]
[424971313,1781362248000,-1793.5767,0.00029,2]
[424971345,1781362248000,-451.6889,0.00029426,7]
[424971343,1781362248000,-358.59923574,0.00029426,2]
[424971347,1781362248000,-522.70230816,0.00029426,7]
[424971351,1781362248000,-607.15368462,0.00029426,7]
[424971349,1781362248000,-239.56403361,0.00029426,7]
[424971352,1781362248000,-243.43045025,0.00029426,7]
[424971354,1781362248000,-460.11814068,0.00029426,7]
[424971353,1781362248000,-530.45086576,0.00029426,7]
[424971355,1781362248000,-226.55809989,0.00029426,7]
[424971357,1781362248000,-521.48359856,0.00029426,7]
[424971360,1781362248000,-522.53669778,0.00029426,7]
[424971358,1781362248000,-562.67966576,0.00029426,7]
[424971350,1781362248000,-454.78093943,0.00029426,7]
[424971341,1781362248000,-174.92467267,0.00029426,7]
[424971356,1781362248000,-626.13823801,0.00029426,7]
[424971362,1781362248000,-311.32787467,0.00029435,3]
[424971373,1781362248000,-513.28924917,0.00029449,7]
[424971361,1781362248000,-483.11248368,0.00029426,7]
[424971372,1781362248000,-529.14176516,0.00029449,7]
[424971363,1781362248000,-225.66436043,0.00029435,3]
[424971364,1781362248000,-4038.61594724,0.00029435,3]
[424971365,1781362248000,-373.5445006,0.00029435,3]
[424971369,1781362248000,-551.01336242,0.00029449,7]
[424971366,1781362248000,-474.58834871,0.00029449,7]
[424971367,1781362248000,-468.29822507,0.00029449,7]
[424971368,1781362248000,-553.19367013,0.00029449,7]
[424971370,1781362248000,-539.66583039,0.00029449,7]
[424971371,1781362248000,-598.22199213,0.00029449,7]
[424971309,1781362248000,-500.0,0.00029,2]
[424971342,1781362248000,-459.88123643,0.00029426,7]
[424971359,1781362248000,-504.12714619,0.00029426,7]
[424971344,1781362248000,-465.89028998,0.00029426,7]
[424971346,1781362248000,-353.03606512,0.00029426,2]
[424971323,1781362248000,-258.0,0.00029121,30]
[424971314,1781362248000,-501.0,0.00029022,12]
[424971324,1781362248000,-430.0,0.00029121,30]
[424971315,1781362248000,-403.83,0.000291,2]
[424971312,1781362248000,-1000.0,0.00029,2]
[424971316,1781362248000,-601.29,0.000291,2]
[424971317,1781362248000,-601.3,0.000291,2]
[424971322,1781362248000,-327.0,0.00029121,30]
[424971320,1781362248000,-168.0,0.00029109,30]
[424971321,1781362248000,-271.0,0.00029109,30]
[424971327,1781362248000,-213.0,0.00029121,30]
[424971325,1781362248000,-1905.0,0.00029121,30]
[424971329,1781362248000,-151.0,0.00029121,30]
[424971318,1781362248000,-901.19,0.000291,30]
[424971328,1781362248000,-289.0,0.00029121,30]
[424971340,1781362248000,-486.04473155,0.00029426,7]
[424971330,1781362248000,-1194.0,0.00029121,30]
[424971339,1781362248000,-619.43496089,0.00029426,7]
[424971337,1781362248000,-462.78356577,0.00029426,7]
[424971348,1781362248000,-229.25248672,0.00029426,7]
[424971335,1781362248000,-203.782588,0.000294,14]
[424971338,1781362248000,-461.31870508,0.00029426,7]
[424971334,1781362248000,-150.0,0.00029372,2]
[424971331,1781362248000,-511.1,0.00029159,2]
[424971333,1781362248000,-511.1,0.00029354,2]
[424971336,1781362248000,-243.90191857,0.00029426,7]
[424971326,1781362248000,-344.0,0.00029121,30]
[424971332,1781362248000,-377.0,0.00029255,2]
[424971388,1781362249000,-1228.0,0.000295,2]
[424971392,1781362249000,-172.6,0.000295,7]
[424971389,1781362249000,-6076.0,0.000295,2]
[424971391,1781362249000,-247.0,0.000295,7]
[424971390,1781362249000,-934.0,0.000295,2]
[424971394,1781362249000,-242.15909246,0.00029517,2]
[424971402,1781362249000,-345.5842916,0.00029555,14]
[424971399,1781362249000,-500.122351,0.00029539,7]
[424971401,1781362249000,-25079.43204777,0.0002955,2]
[424971405,1781362249000,-738.58826108,0.00029555,7]
[424971400,1781362249000,-511.1,0.0002955,2]
[424971407,1781362249000,-604.77200626,0.00029555,7]
[424971386,1781362249000,-383.0,0.000295,2]
[424971393,1781362249000,-284.01862642,0.00029517,2]
[424971395,1781362249000,-151.0,0.00029517,2]
[424971380,1781362249000,-568.53786923,0.00029449,7]
[424971398,1781362249000,-203.43257202,0.00029539,7]
[424971374,1781362249000,-608.96803162,0.00029449,7]
[424971375,1781362249000,-564.02685916,0.00029449,7]
[424971381,1781362249000,-515.61278529,0.00029449,7]
[424971379,1781362249000,-453.53843763,0.00029449,7]
[424971377,1781362249000,-248.85366096,0.00029449,7]
[424971382,1781362249000,-455.49225134,0.00029449,7]
[424971403,1781362249000,-569.62036232,0.00029555,7]
[424971376,1781362249000,-593.33658162,0.00029449,7]
[424971384,1781362249000,-3557.0,0.000295,2]
[424971385,1781362249000,-1359.0,0.000295,2]
[424971383,1781362249000,-212.11512792,0.00029449,7]
[424971387,1781362249000,-1275.0,0.000295,2]
[424971396,1781362249000,-290.3986294,0.00029517,2]
[424971397,1781362249000,-201.98564072,0.00029539,7]
[424971378,1781362249000,-295.5913258,0.00029449,7]
[424971409,1781362249000,-424.4554527,0.00029555,7]
[424971427,1781362249000,-203.02214875,0.00029555,7]
[424971408,1781362249000,-815.87131619,0.00029555,7]
[424971410,1781362249000,-457.00346118,0.00029555,7]
[424971439,1781362249000,-233.49665667,0.00029555,7]
[424971436,1781362249000,-245.06560329,0.00029555,7]
[424971440,1781362249000,-284.3040931,0.00029555,7]
[424971438,1781362249000,-494.05785594,0.00029555,5]
[424971431,1781362249000,-283.562939,0.00029555,7]
[424971434,1781362249000,-353.45329022,0.00029555,2]
[424971435,1781362249000,-310.30066638,0.00029555,7]
[424971425,1781362249000,-160.06722887,0.00029555,7]
[424971432,1781362249000,-228.86632914,0.00029555,7]
[424971430,1781362249000,-200.85507384,0.00029555,7]
[424971433,1781362249000,-496.5790067,0.00029555,7]
[424971426,1781362249000,-420.58201532,0.00029555,7]
[424971428,1781362249000,-337.24003181,0.00029555,7]
[424971429,1781362249000,-482.90435318,0.00029555,7]
[424971437,1781362249000,-311.53820229,0.00029555,2]
[424971416,1781362249000,-239.02069321,0.00029555,7]
[424971424,1781362249000,-575.25734476,0.00029555,7]
[424971406,1781362249000,-547.37554445,0.00029555,7]
[424971404,1781362249000,-317.54022769,0.00029555,7]
[424971412,1781362249000,-282.39741276,0.00029555,7]
[424971414,1781362249000,-541.26003602,0.00029555,7]
[424971411,1781362249000,-452.88537141,0.00029555,7]
[424971420,1781362249000,-173.73494006,0.00029555,7]
[424971413,1781362249000,-492.3008687,0.00029555,7]
[424971419,1781362249000,-221.84390347,0.00029555,7]
[424971422,1781362249000,-551.57899222,0.00029555,7]
[424971423,1781362249000,-215.50831126,0.00029555,7]
[424971421,1781362249000,-165.31350154,0.00029555,7]
[424971417,1781362249000,-472.65883782,0.00029555,7]
[424971415,1781362249000,-453.04004283,0.00029555,7]
[424971418,1781362249000,-225.80186222,0.00029555,7]
[424971473,1781362250000,-500.0,0.00029563,2]
[424971471,1781362250000,-500.0,0.00029563,2]
[424971468,1781362250000,-500.0,0.00029563,2]
[424971470,1781362250000,-500.0,0.00029563,2]
[424971472,1781362250000,-445.0,0.00029563,2]
[424971464,1781362250000,-500.0,0.00029563,2]
[424971476,1781362250000,-500.0,0.00029563,2]
[424971467,1781362250000,-500.0,0.00029563,2]
[424971469,1781362250000,-500.0,0.00029563,2]
[424971474,1781362250000,-500.0,0.00029563,2]
[424971484,1781362250000,-500.0,0.00029563,2]
[424971475,1781362250000,-500.0,0.00029563,2]
[424971478,1781362250000,-500.0,0.00029563,2]
[424971480,1781362250000,-500.0,0.00029563,2]
[424971482,1781362250000,-500.0,0.00029563,2]
[424971479,1781362250000,-500.0,0.00029563,2]
[424971481,1781362250000,-500.0,0.00029563,2]
[424971485,1781362250000,-500.0,0.00029563,2]
[424971488,1781362250000,-500.0,0.00029563,2]
[424971486,1781362250000,-500.0,0.00029563,2]
[424971465,1781362250000,-500.0,0.00029563,2]
[424971477,1781362250000,-500.0,0.00029563,2]
[424971466,1781362250000,-500.0,0.00029563,2]
[424971444,1781362250000,-225.64017706,0.00029555,7]
[424971463,1781362250000,-500.0,0.00029563,2]
[424971442,1781362250000,-452.80577407,0.00029555,7]
[424971441,1781362250000,-351.97055243,0.00029555,2]
[424971443,1781362250000,-410.92829829,0.00029555,7]
[424971446,1781362250000,-441.14913274,0.00029555,7]
[424971447,1781362250000,-512.45864293,0.00029555,7]
[424971448,1781362250000,-520.21727634,0.00029555,5]
[424971445,1781362250000,-389.6785586,0.00029555,7]
[424971489,1781362250000,-500.0,0.00029563,2]
[424971449,1781362250000,-451.63088329,0.00029555,7]
[424971450,1781362250000,-345.68079418,0.00029555,7]
[424971452,1781362250000,-450.90090629,0.00029555,7]
[424971451,1781362250000,-223.82122667,0.00029555,7]
[424971454,1781362250000,-577.77607659,0.00029555,7]
[424971459,1781362250000,-500.0,0.00029563,2]
[424971457,1781362250000,-585.83128628,0.00029555,7]
[424971455,1781362250000,-232.40750546,0.00029555,7]
[424971453,1781362250000,-150.85547736,0.00029555,7]
[424971456,1781362250000,-455.25057047,0.00029555,2]
[424971460,1781362250000,-500.0,0.00029563,2]
[424971458,1781362250000,-347.47914688,0.00029555,7]
[424971461,1781362250000,-500.0,0.00029563,2]
[424971462,1781362250000,-500.0,0.00029563,2]
[424971487,1781362250000,-500.0,0.00029563,2]
[424971483,1781362250000,-500.0,0.00029563,2]
[424971495,1781362250000,-460.0,0.00029563,2]
[424971518,1781362250000,-200.0,0.00029563,2]
[424971520,1781362250000,-200.0,0.00029563,2]
[424971526,1781362250000,-200.0,0.00029563,2]
[424971521,1781362250000,-200.0,0.00029563,2]
[424971519,1781362250000,-200.0,0.00029563,2]
[424971524,1781362250000,-200.0,0.00029563,2]
[424971525,1781362250000,-200.0,0.00029563,2]
[424971523,1781362250000,-200.0,0.00029563,2]
[424971527,1781362250000,-200.0,0.00029563,2]
[424971522,1781362250000,-200.0,0.00029563,2]
[424971517,1781362250000,-200.0,0.00029563,2]
[424971529,1781362250000,-200.0,0.00029563,2]
[424971536,1781362250000,-455438.3975096,0.00029569,2]
[424971534,1781362250000,-500.0,0.00029563,2]
[424971535,1781362250000,-500.0,0.00029563,2]
[424971538,1781362250000,-383.79,0.000296,7]
[424971531,1781362250000,-200.0,0.00029563,2]
[424971533,1781362250000,-169.0,0.00029563,2]
[424971539,1781362250000,-1123.42,0.00029602,5]
[424971532,1781362250000,-200.0,0.00029563,2]
[424971537,1781362250000,-298.38688076,0.00029583,120]
[424971492,1781362250000,-500.0,0.00029563,2]
[424971530,1781362250000,-200.0,0.00029563,2]
[424971513,1781362250000,-200.0,0.00029563,2]
[424971528,1781362250000,-200.0,0.00029563,2]
[424971512,1781362250000,-200.0,0.00029563,2]
[424971493,1781362250000,-500.0,0.00029563,2]
[424971516,1781362250000,-200.0,0.00029563,2]
[424971491,1781362250000,-500.0,0.00029563,2]
[424971490,1781362250000,-500.0,0.00029563,2]
[424971494,1781362250000,-500.0,0.00029563,2]
[424971496,1781362250000,-200.0,0.00029563,2]
[424971497,1781362250000,-200.0,0.00029563,2]
[424971500,1781362250000,-200.0,0.00029563,2]
[424971501,1781362250000,-200.0,0.00029563,2]
[424971505,1781362250000,-200.0,0.00029563,2]
[424971502,1781362250000,-200.0,0.00029563,2]
[424971498,1781362250000,-200.0,0.00029563,2]
[424971511,1781362250000,-200.0,0.00029563,2]
[424971504,1781362250000,-200.0,0.00029563,2]
[424971503,1781362250000,-200.0,0.00029563,2]
[424971506,1781362250000,-200.0,0.00029563,2]
[424971515,1781362250000,-200.0,0.00029563,2]
[424971507,1781362250000,-200.0,0.00029563,2]
[424971508,1781362250000,-200.0,0.00029563,2]
[424971514,1781362250000,-200.0,0.00029563,2]
[424971510,1781362250000,-200.0,0.00029563,2]
[424971509,1781362250000,-200.0,0.00029563,2]
[424971499,1781362250000,-200.0,0.00029563,2]
[424971576,1781362251000,-5594.29193222,0.000299,2]
[424971572,1781362251000,-5594.29193222,0.000299,2]
[424971581,1781362251000,-1085.60785228,0.000299,2]
[424971582,1781362251000,-298.38688076,0.00029905,120]
[424971579,1781362251000,-605.237794,0.000299,5]
[424971575,1781362251000,-5594.29193222,0.000299,2]
[424971578,1781362251000,-5594.29193222,0.000299,2]
[424971568,1781362251000,-5594.29193222,0.000299,2]
[424971571,1781362251000,-5594.29193222,0.000299,2]
[424971580,1781362251000,-5594.29193222,0.000299,2]
[424971570,1781362251000,-5594.29193222,0.000299,2]
[424971574,1781362251000,-5594.29193222,0.000299,2]
[424971590,1781362251000,-500.0,0.0002997,2]
[424971598,1781362251000,-696.93641088,0.00029999,7]
[424971585,1781362251000,-4655.18,0.0002995,7]
[424971589,1781362251000,-400.0,0.0002997,2]
[424971584,1781362251000,-511.1,0.00029941,2]
[424971586,1781362251000,-266.69402213,0.00029953,2]
[424971583,1781362251000,-802.12,0.00029916,14]
[424971588,1781362251000,-39154.70395339,0.00029965,2]
[424971592,1781362251000,-615.09160678,0.00029999,7]
[424971602,1781362251000,-486.86090051,0.00029999,7]
[424971593,1781362251000,-648.05964206,0.00029999,7]
[424971599,1781362251000,-606.3745859,0.00029999,7]
[424971594,1781362251000,-613.17498191,0.00029999,7]
[424971567,1781362251000,-5594.29193222,0.000299,2]
[424971596,1781362251000,-602.25186667,0.00029999,7]
[424971587,1781362251000,-240.02461991,0.00029953,2]
[424971573,1781362251000,-5594.29193222,0.000299,2]
[424971542,1781362251000,-501.0,0.00029711,12]
[424971569,1781362251000,-5594.29193222,0.000299,2]
[424971591,1781362251000,-617.04475436,0.00029999,7]
[424971540,1781362251000,-1998.9991099,0.000297,120]
[424971541,1781362251000,-10989.2070799,0.00029702,2]
[424971543,1781362251000,-511.1,0.00029746,2]
[424971553,1781362251000,-206.1369869,0.000299,2]
[424971545,1781362251000,-2900.0,0.000298,10]
[424971546,1781362251000,-6503.0,0.00029829,10]
[424971544,1781362251000,-565.95068459,0.00029796,2]
[424971549,1781362251000,-2206.0,0.000299,2]
[424971551,1781362251000,-151.0,0.000299,2]